fUSD/lending_fUSD_20240429
["ID","MTS","AMOUNT","RATE_DAILY","PERIOD"]
[324917100,1714415446654,-1142.08,0.00011818,2]
[324917102,1714415446663,-901.76,0.00011818,2]
[324917104,1714415446672,-1905.25,0.00011818,2]
[324917106,1714415446683,-3122.35,0.00011818,2]
[324917108,1714415446692,-1014.5,0.00011818,2]
[324917110,1714415446701,-500.0,0.00011818,2]
[324917112,1714415446711,-500.0,0.00011818,2]
[324917114,1714415446719,-1267.91,0.00011818,2]
[324917116,1714415446728,-1187.87,0.00011818,2]
[324917118,1714415446738,-500.0,0.00011818,2]
[324917120,1714415446747,-500.0,0.00011818,2]
[324917122,1714415446756,-2097.8,0.00011818,2]
[324917124,1714415446765,-500.0,0.00011818,2]
[324917126,1714415446775,-500.0,0.00011818,2]
[324917128,1714415446784,-500.0,0.00011818,2]
[324917130,1714415446794,-2044.79,0.00011818,2]
[324917132,1714415446804,-2853.96,0.00011818,2]
[324917134,1714415446813,-500.0,0.00011818,2]
[324917136,1714415446822,-2917.16,0.00011818,2]
[324917138,1714415446831,-849.07,0.00011818,2]
[324917140,1714415446840,-500.0,0.00011818,2]
[324917142,1714415446850,-500.0,0.00011818,2]
[324917144,1714415446859,-500.0,0.00011818,2]
[324917146,1714415446868,-500.0,0.00011818,2]
[324917148,1714415446877,-2573.17,0.00011818,2]
[324917150,1714415446886,-6325.93,0.00011818,2]
[324917152,1714415446895,-500.0,0.00011818,2]
[324917154,1714415446904,-500.0,0.00011818,2]
[324917156,1714415446914,-500.0,0.00011818,2]
[324917158,1714415446923,-3533.76,0.00011818,2]
[324917160,1714415446931,-626.84,0.00011818,2]
[324917162,1714415446940,-553.97,0.00011818,2]
[324917164,1714415446949,-500.0,0.00011818,2]
[324917166,1714415446958,-2435.44,0.00011818,2]
[324917168,1714415446967,-1529.2,0.00011818,2]
[324917170,1714415446975,-500.0,0.00011818,2]
[324917172,1714415446984,-519.26,0.00011818,2]
[324917174,1714415446994,-2250.06,0.00011818,2]
[324917176,1714415447003,-1051.95,0.00011818,2]
[324917178,1714415447012,-1460.71,0.00011818,2]
[324917180,1714415447021,-786.56,0.00011818,2]
[324917182,1714415447031,-6683.53,0.00011818,2]
[324917184,1714415447040,-4531.56,0.00011818,2]
[324917186,1714415447050,-2255.7,0.00011818,2]
[324917188,1714415447059,-499.97091079,0.00011819,2]
[324917190,1714415447069,-1520.96,0.00011819,2]
[324917192,1714415447078,-2301.61,0.00011819,2]
[324917194,1714415447088,-1528.06,0.00011819,2]
[324917196,1714415447097,-1746.79,0.00011819,2]
[324917198,1714415447107,-526.08,0.00011819,2]
[324917200,1714415447115,-1549.37,0.00011819,2]
[324917202,1714415447124,-4624.57,0.00011819,2]
[324917204,1714415447133,-2145.27,0.00011819,2]
[324917206,1714415447143,-2510.41,0.00011819,2]
[324917208,1714415447152,-3308.85,0.00011819,2]
[324917210,1714415447161,-721.71,0.00011819,2]
[324917212,1714415447170,-666.78,0.00011819,2]
[324917214,1714415447180,-2760.57,0.00011819,2]
[324917216,1714415447189,-500.0,0.00011819,2]
[324917218,1714415447200,-516.66,0.00011819,2]
[324917220,1714415447209,-876.7,0.00011819,2]
[324917222,1714415447218,-877.38,0.00011819,2]
[324917224,1714415447227,-1421.73,0.00011819,2]
[324917226,1714415447236,-500.0,0.0001182,2]
[324917228,1714415447245,-1010.04,0.0001182,2]
[324917230,1714415447254,-500.0,0.0001182,2]
[324917232,1714415447264,-500.0,0.0001182,2]
[324917234,1714415447273,-500.0,0.0001182,2]
[324917236,1714415447283,-500.0,0.0001182,2]
[324917238,1714415447292,-500.0,0.0001182,2]
[324917240,1714415447302,-500.0,0.0001182,2]
[324917242,1714415447310,-500.0,0.0001182,2]
[324917244,1714415447320,-500.0,0.0001182,2]
[324917246,1714415447329,-500.0,0.0001182,2]
[324917248,1714415447338,-500.0,0.0001182,2]
[324917250,1714415447347,-500.0,0.0001182,2]
[324917252,1714415447356,-500.0,0.0001182,2]
[324917254,1714415447365,-500.0,0.0001182,2]
[324917255,1714415447374,-500.0,0.0001182,2]
[324917257,1714415447383,-500.0,0.0001182,2]
[324917259,1714415447394,-500.0,0.0001182,2]
[324917261,1714415447403,-500.0,0.0001182,2]
[324917263,1714415447413,-500.0,0.0001182,2]
[324917265,1714415447422,-500.0,0.0001182,2]
[324917268,1714415447431,-500.0,0.0001182,2]
[324917269,1714415447440,-500.0,0.0001182,2]
[324917272,1714415447449,-500.0,0.0001182,2]
[324917273,1714415447458,-500.0,0.0001182,2]
[324917275,1714415447468,-500.0,0.0001182,2]
[324917277,1714415447477,-500.0,0.0001182,2]
[324917280,1714415447486,-298.81,0.0001182,2]
[324917281,1714415447495,-500.0,0.0001182,2]
[324917284,1714415447504,-500.0,0.0001182,2]
[324917286,1714415447514,-1393.61,0.0001182,2]
[324917287,1714415447523,-500.0,0.0001182,2]
[324917290,1714415447532,-5568.3,0.0001182,2]
[324917292,1714415447541,-500.0,0.0001182,2]
[324917294,1714415447551,-5019.87,0.0001182,2]
[324917295,1714415447560,-500.0,0.0001182,2]
[324917298,1714415447570,-500.0,0.0001182,2]
[324917300,1714415447579,-574.61,0.0001182,2]
[324917302,1714415447587,-3000.0,0.0001182,2]
[324917303,1714415447597,-3000.0,0.0001182,2]
[324917305,1714415447609,-500.0,0.0001182,2]
[324917312,1714415447774,-1824.19,0.0001182,2]
[324917314,1714415447784,-500.0,0.0001182,2]
[324917316,1714415447794,-7609.28,0.0001182,2]
[324917318,1714415447804,-500.0,0.0001182,2]
[324917320,1714415447813,-595.7,0.0001182,2]
[324917323,1714415447823,-500.0,0.0001182,2]
[324917324,1714415447833,-500.0,0.0001182,2]
[324917327,1714415447843,-155.42785918,0.0001182,2]
[324917328,1714415447853,-3000.0,0.0001183,2]
[324917330,1714415447864,-3000.0,0.0001183,2]
[324917333,1714415447874,-1372.16862,0.0001183,2]
[324917334,1714415447884,-1372.16863,0.0001184,2]
[324917336,1714415447894,-1372.16862,0.0001188,2]
[324917338,1714415447903,-2000.0,0.00011899,2]
[324917341,1714415447912,-11715.92979433,0.000119,2]
[324917369,1714415448198,-10049.11556207,0.000119,2]
[324917371,1714415448209,-844.999782,0.000119,2]
[324917374,1714415448229,-1694.55688069,0.000119,2]
[324917376,1714415448241,-1458.85397931,0.000119,2]
[324917378,1714415448252,-823.29,0.000119,2]
[324917392,1714415448373,-353.72775362,0.00011817,2]
[324917914,1714415454735,791.12628128,0.00010019,2]
[324917915,1714415456669,155.0,0.00010019,2]
[324917916,1714415463417,201574.15339587,9.047e-05,2]
[324917917,1714415468060,11253.5169336,9.047e-05,2]
[324917918,1714415468974,866.68214589,9.047e-05,2]
[324917919,1714415476668,1374.80866039,9.047e-05,2]
[324917928,1714415913636,502.48,8.8e-05,2]
[324917933,1714416384365,477.35,8.646e-05,2]
[324917936,1714416631948,-749.56,0.0001015,2]
[324917948,1714416632077,-1836.70850841,0.0001015,2]
[324917949,1714416632089,-6127.79096648,0.0001015,2]
[324917950,1714416632098,-660.0,0.00010249,2]
[324917951,1714416632108,-533.25146559,0.0001025,2]
[324917952,1714416632118,-1792.48,0.00010431,2]
[324917953,1714416632127,-250.0,0.0001049,2]
[324917954,1714416632138,-4696.66,0.00010493,2]
[324917955,1714416632147,-250.36,0.00010493,2]
[324917956,1714416632156,-161.69,0.00010573,2]
[324917957,1714416632166,-1290.34,0.00010607,2]
[324917958,1714416632175,-784.94521655,0.0001062,2]
[324917959,1714416632185,-150.0,0.0001074,2]
[324917960,1714416632195,-165.17,0.00010779,2]
[324917961,1714416632205,-242.66,0.00010822,2]
[324917962,1714416632216,-477.35,0.0001091,2]
[324917963,1714416632224,-150.0,0.00010959,2]
[324917964,1714416632233,-2450.0,0.00011,3]
[324917965,1714416632242,-500.0,0.00011269,2]
[324917966,1714416632253,-500.0,0.00011269,2]
[324917967,1714416632263,-500.0,0.00011269,2]
[324917968,1714416632272,-500.0,0.00011269,2]
[324917969,1714416632283,-500.0,0.00011269,2]
[324917970,1714416632292,-841.7,0.00011269,2]
[324917971,1714416632303,-500.0,0.00011269,2]
[324917972,1714416632312,-234.52688593,0.00011269,2]
[324917973,1714416632326,-274.03311407,0.00011269,2]
[324917974,1714416632335,-500.0,0.00011269,2]
[324917975,1714416632345,-500.0,0.00011269,2]
[324917976,1714416632354,-500.0,0.00011269,2]
[324917977,1714416632363,-500.0,0.00011269,2]
[324917978,1714416632372,-500.0,0.00011269,2]
[324917979,1714416632382,-500.0,0.00011269,2]
[324917980,1714416632391,-500.0,0.00011269,2]
[324917981,1714416632400,-500.0,0.00011269,2]
[324917982,1714416632409,-500.0,0.00011269,2]
[324917983,1714416632418,-500.0,0.00011269,2]
[324917984,1714416632428,-500.0,0.00011269,2]
[324917985,1714416632437,-500.0,0.00011269,2]
[324917986,1714416632447,-500.0,0.00011269,2]
[324917987,1714416632456,-500.0,0.00011269,2]
[324917988,1714416632465,-500.0,0.00011269,2]
[324917989,1714416632475,-500.0,0.00011269,2]
[324917990,1714416632485,-500.0,0.00011269,2]
[324917991,1714416632494,-502.9,0.00011269,2]
[324917992,1714416632503,-209.01,0.00011269,2]
[324917993,1714416632513,-500.0,0.00011269,2]
[324917994,1714416632522,-500.0,0.00011269,2]
[324917995,1714416632532,-500.0,0.00011269,2]
[324917996,1714416632541,-500.0,0.00011269,2]
[324917997,1714416632551,-500.0,0.00011269,2]
[324917998,1714416632562,-500.0,0.00011269,2]
[324917999,1714416632572,-500.0,0.00011269,2]
[324918000,1714416632583,-500.0,0.00011269,2]
[324918001,1714416632592,-500.0,0.00011269,2]
[324918002,1714416632602,-500.0,0.00011269,2]
[324918003,1714416632612,-1161.34,0.00011269,2]
[324918004,1714416632622,-500.0,0.00011269,2]
[324918005,1714416632632,-5753.92,0.00011269,2]
[324918006,1714416632642,-500.0,0.00011269,2]
[324918007,1714416632651,-593.77,0.00011269,2]
[324918008,1714416632660,-927.44152486,0.00011269,2]
[324918009,1714416632672,-496.346633,0.00011269,2]
[324918010,1714416632684,-96.37184214,0.00011269,2]
[324918011,1714416632692,-633.98352041,0.00011269,2]
[324918012,1714416632729,-387.99999996,0.00011269,2]
[324918013,1714416638035,-430.39428072,0.00011269,2]
[324918017,1714416638112,-2199.76057497,0.00011269,2]
[324918018,1714416638125,-2688.93162394,0.00011269,2]
[324918019,1714416638135,-500.0,0.00011269,2]
[324918020,1714416638145,-125.06580606,0.00011269,2]
[324918038,1714416638650,-374.93419394,0.00011269,2]
[324918040,1714416638660,-500.0,0.00011269,2]
[324918042,1714416638669,-500.0,0.00011269,2]
[324918044,1714416638679,-500.0,0.00011269,2]
[324918046,1714416638688,-500.0,0.00011269,2]
[324918048,1714416638697,-1527.20049393,0.00011303,7]
[324918050,1714416638706,-500.0,0.00011542,2]
[324918052,1714416638715,-500.0,0.00011542,2]
[324918054,1714416638725,-500.0,0.00011542,2]
[324918056,1714416638734,-500.0,0.00011542,2]
[324918058,1714416638743,-500.0,0.00011542,2]
[324918060,1714416638753,-690.11,0.00011542,2]
[324918062,1714416638762,-500.0,0.00011542,2]
[324918064,1714416638771,-500.0,0.00011542,2]
[324918066,1714416638781,-500.0,0.00011542,2]
[324918068,1714416638791,-150.0,0.00011542,2]
[324918070,1714416638800,-560.53,0.00011542,2]
[324918072,1714416638809,-500.0,0.00011542,2]
[324918074,1714416638818,-1516.16,0.00011542,2]
[324918076,1714416638827,-500.0,0.00011542,2]
[324918078,1714416638837,-624.66,0.00011542,2]
[324918080,1714416638846,-350.38722615,0.00011542,2]
[324918082,1714416638855,-500.0,0.00011542,2]
[324918084,1714416638865,-500.0,0.00011542,2]
[324918086,1714416638874,-500.0,0.00011542,2]
[324918088,1714416638883,-500.0,0.00011542,2]
[324918090,1714416638893,-635.08,0.00011542,2]
[324918092,1714416638902,-771.01,0.00011542,2]
[324918094,1714416638911,-500.0,0.00011542,2]
[324918096,1714416638920,-500.0,0.00011542,2]
[324918098,1714416638930,-4680.56,0.00011542,2]
[324918100,1714416638939,-500.0,0.00011542,2]
[324918102,1714416638948,-500.0,0.00011542,2]
[324918104,1714416638958,-500.0,0.00011542,2]
[324918106,1714416638967,-500.0,0.00011542,2]
[324918108,1714416638977,-500.0,0.00011542,2]
[324918110,1714416638987,-1874.57,0.00011542,2]
[324918113,1714416638997,-500.0,0.00011542,2]
[324918115,1714416639008,-3405.03623258,0.00011542,2]
[324918117,1714416639020,-1037.51376742,0.00011542,2]
[324918119,1714416639030,-500.0,0.00011542,2]
[324918121,1714416639041,-802.88,0.00011542,2]
[324918123,1714416639050,-983.45,0.00011542,2]
[324918125,1714416639059,-1017.64,0.00011542,2]
[324918127,1714416639069,-500.0,0.00011542,2]
[324918129,1714416639079,-4081.92,0.00011542,2]
[324918131,1714416639088,-991.4,0.00011542,2]
[324918133,1714416639097,-982.59,0.00011542,2]
[324918135,1714416639107,-500.0,0.00011542,2]
[324918137,1714416639116,-500.0,0.00011542,2]
[324918139,1714416639125,-1232.02,0.00011542,2]
[324918141,1714416639134,-1433.17,0.00011542,2]
[324918143,1714416639143,-500.0,0.00011542,2]
[324918145,1714416639153,-500.0,0.00011542,2]
[324918147,1714416639162,-887.68,0.00011542,2]
[324918149,1714416639172,-886.54,0.00011542,2]
[324918151,1714416639181,-1014.36,0.00011542,2]
[324918153,1714416639190,-1587.04,0.00011542,2]
[324918155,1714416639199,-999.32,0.00011542,2]
[324918157,1714416639208,-500.0,0.00011542,2]
[324918159,1714416639219,-1137.7,0.00011542,2]
[324918161,1714416639228,-1109.42,0.00011542,2]
[324918163,1714416639237,-500.0,0.00011542,2]
[324918165,1714416639246,-1667.09,0.00011542,2]
[324918167,1714416639256,-666.49,0.00011542,2]
[324918169,1714416639265,-2763.26,0.00011542,2]
[324918171,1714416639274,-1835.58,0.00011542,2]
[324918173,1714416639284,-2732.06,0.00011542,2]
[324918175,1714416639293,-500.0,0.00011542,2]
[324918177,1714416639302,-1413.71,0.00011542,2]
[324918179,1714416639311,-2497.22,0.00011542,2]
[324918180,1714416639321,-2373.97,0.00011542,2]
[324918183,1714416639330,-500.0,0.00011542,2]
[324918184,1714416639339,-500.0,0.00011542,2]
[324918187,1714416639349,-500.0,0.00011542,2]
[324918188,1714416639358,-500.0,0.00011542,2]
[324918190,1714416639367,-500.0,0.00011542,2]
[324918192,1714416639376,-500.0,0.00011542,2]
[324918195,1714416639385,-966.38,0.00011542,2]
[324918196,1714416639394,-1039.39,0.00011542,2]
[324918198,1714416639403,-500.0,0.00011542,2]
[324918200,1714416639412,-500.0,0.00011542,2]
[324918202,1714416639420,-2232.54,0.00011542,2]
[324918204,1714416639429,-1341.89,0.00011542,2]
[324918206,1714416639439,-552.73,0.00011542,2]
[324918208,1714416639447,-500.0,0.00011542,2]
[324918210,1714416639456,-500.0,0.00011542,2]
[324918212,1714416639466,-500.0,0.00011542,2]
[324918214,1714416639477,-2116.79,0.00011542,2]
[324918216,1714416639486,-1706.8,0.00011542,2]
[324918218,1714416639496,-2251.53,0.00011542,2]
[324918220,1714416639505,-500.0,0.00011542,2]
[324918222,1714416639515,-500.0,0.00011542,2]
[324918224,1714416639524,-500.0,0.00011542,2]
[324918226,1714416639533,-2552.52,0.00011542,2]
[324918228,1714416639543,-536.19,0.00011542,2]
[324918230,1714416639552,-374.586,0.00011542,2]
[324918232,1714416639561,-500.0,0.00011542,2]
[324918234,1714416639571,-548.48,0.00011542,2]
[324918236,1714416639579,-2223.59,0.00011542,2]
[324918238,1714416639589,-500.0,0.00011542,2]
[324918240,1714416639598,-500.0,0.00011542,2]
[324918242,1714416639607,-500.0,0.00011542,2]
[324918244,1714416639616,-5535.19,0.00011542,2]
[324918246,1714416639625,-1268.09,0.00011542,2]
[324918248,1714416639633,-3092.04,0.00011542,2]
[324918250,1714416639642,-500.0,0.00011542,2]
[324918252,1714416639652,-500.0,0.00011542,2]
[324918254,1714416639661,-500.0,0.00011542,2]
[324918256,1714416639671,-3966.96,0.00011542,2]
[324918258,1714416639680,-500.0,0.00011542,2]
[324918260,1714416639690,-1338.05,0.00011542,2]
[324918262,1714416639699,-2131.01,0.00011542,2]
[324918264,1714416639708,-920.45,0.00011542,2]
[324918266,1714416639719,-500.0,0.00011542,2]
[324918268,1714416639728,-1346.39,0.00011542,2]
[324918270,1714416639738,-500.0,0.00011542,2]
[324918272,1714416639747,-3965.11,0.00011542,2]
[324918274,1714416639757,-225.57052179,0.00011542,2]
[324918276,1714416639767,-1968.81,0.00011542,2]
[324918278,1714416639776,-1879.59,0.00011542,2]
[324918280,1714416639785,-3115.53,0.00011542,2]
[324918282,1714416639794,-3278.66,0.00011542,2]
[324918284,1714416639804,-500.0,0.00011542,2]
[324918286,1714416639813,-5908.92,0.00011542,2]
[324918288,1714416639823,-1330.84,0.00011542,2]
[324918290,1714416639832,-383.32,0.00011542,2]
[324918292,1714416639842,-5848.09,0.00011542,2]
[324918294,1714416639852,-500.0,0.00011542,2]
[324918296,1714416639861,-2322.20156934,0.00011543,2]
[324918298,1714416639870,-500.0,0.00011543,2]
[324918300,1714416639880,-500.0,0.00011543,2]
[324918302,1714416639890,-841.7,0.00011543,2]
[324918304,1714416639899,-500.0,0.00011543,2]
[324918306,1714416639908,-500.0,0.00011543,2]
[324918309,1714416639918,-500.0,0.00011543,2]
[324918311,1714416639928,-500.0,0.00011543,2]
[324918313,1714416639939,-500.0,0.00011543,2]
[324918315,1714416639948,-233.19947685,0.00011543,2]
[324918317,1714416639958,-500.0,0.00011543,2]
[324918319,1714416639969,-500.0,0.00011543,2]
[324918321,1714416639978,-500.0,0.00011543,2]
[324918323,1714416639988,-283.8,0.00011543,2]
[324918325,1714416639999,-500.0,0.00011543,2]
[324918327,1714416640009,-500.0,0.00011543,2]
[324918329,1714416640018,-500.0,0.00011543,2]
[324918331,1714416640028,-500.0,0.00011543,2]
[324918332,1714416640039,-500.0,0.00011543,2]
[324918335,1714416640049,-500.0,0.00011543,2]
[324918336,1714416640059,-500.0,0.00011543,2]
[324918338,1714416640070,-500.0,0.00011543,2]
[324918340,1714416640081,-500.0,0.00011543,2]
[324918342,1714416640090,-500.0,0.00011543,2]
[324918344,1714416640101,-500.0,0.00011543,2]
[324918348,1714416640111,-500.0,0.00011543,2]
[324918349,1714416640120,-500.0,0.00011543,2]
[324918352,1714416640129,-500.0,0.00011543,2]
[324918354,1714416640139,-500.0,0.00011543,2]
[324918356,1714416640148,-500.0,0.00011543,2]
[324918358,1714416640157,-500.0,0.00011543,2]
[324918360,1714416640167,-500.0,0.00011543,2]
[324918364,1714416640190,-1161.34,0.00011543,2]
[324918366,1714416640201,-500.0,0.00011543,2]
[324918368,1714416640212,-5753.92,0.00011543,2]
[324918370,1714416640223,-2013.91,0.00011543,2]
[324918372,1714416640234,-500.0,0.00011543,2]
[324918374,1714416640244,-1337.05,0.00011543,2]
[324918376,1714416640254,-1528.44,0.00011543,2]
[324918378,1714416640264,-593.77,0.00011543,2]
[324918381,1714416640274,-500.0,0.00011543,2]
[324918382,1714416640284,-1520.16,0.00011543,2]
[324918385,1714416640294,-1355.7,0.00011543,2]
[324918387,1714416640304,-6341.07,0.00011543,2]
[324918389,1714416640314,-4046.5,0.00011543,2]
[324918391,1714416640323,-500.0,0.00011543,2]
[324918393,1714416640333,-1877.11,0.00011543,2]
[324918395,1714416640343,-500.0,0.00011543,2]
[324918397,1714416640353,-2895.25,0.00011543,2]
[324918399,1714416640363,-500.0,0.00011543,2]
[324918401,1714416640372,-631.49,0.00011543,2]
[324918403,1714416640382,-583.43,0.00011543,2]
[324918404,1714416640392,-2415.5,0.00011543,2]
[324918405,1714416640401,-500.0,0.00011543,2]
[324918406,1714416640411,-500.0,0.00011543,2]
[324918407,1714416640421,-500.0,0.00011543,2]
[324918408,1714416640431,-500.0,0.00011543,2]
[324918409,1714416640441,-500.0,0.00011543,2]
[324918410,1714416640451,-767.11,0.00011543,2]
[324918411,1714416640460,-767.71,0.00011543,2]
[324918412,1714416640472,-1244.01,0.00011543,2]
[324918413,1714416640481,-1448.26,0.00011543,2]
[324918414,1714416640490,-300.0,0.00011555,2]
[324918415,1714416640500,-300.0,0.00011561,2]
[324918416,1714416640509,-300.0,0.00011633,2]
[324918417,1714416640519,-1500.0,0.00011647,2]
[324918418,1714416640529,-300.0,0.00011675,2]
[324918419,1714416640538,-1500.0,0.00011676,2]
[324918420,1714416640548,-300.0,0.0001168,2]
[324918421,1714416640557,-300.0,0.00011684,2]
[324918422,1714416640567,-1500.0,0.00011689,2]
[324918423,1714416640577,-1124.73824537,0.00011712,2]
[324918424,1714416640587,-7500.0,0.00011716,2]
[324918426,1714416640598,-194.8912014,0.00011728,2]
[324918428,1714416640608,-1500.0,0.00011739,2]
[324918430,1714416640618,-300.0,0.0001174,2]
[324918432,1714416640627,-300.0,0.00011746,2]
[324918434,1714416640637,-1500.0,0.00011754,2]
[324918436,1714416640647,-301.68072993,0.00011755,2]
[324918438,1714416640656,-1500.0,0.0001176,2]
[324918440,1714416640666,-300.0,0.00011762,2]
[324918442,1714416640675,-194.89120138,0.00011771,2]
[324918444,1714416640685,-190.37386671,0.0001178,2]
[324918447,1714416640702,-316.62,0.0001178,2]
[324918449,1714416640714,-179.09044329,0.0001178,2]
[324918451,1714416640724,-806.64081489,0.00011781,2]
[324918452,1714416640733,-150.0,0.00011784,2]
[324918453,1714416640743,-493.94879299,0.00011799,2]
[324918464,1714416641145,-500.0,0.00011542,2]
[324918465,1714416641158,-500.0,0.00011542,2]
[324918466,1714416641169,-64.36232487,0.00011799,2]
[324918467,1714416641205,-804.29,0.00011799,2]
[324918468,1714416641221,-137.39888214,0.00011799,2]
[324918469,1714416641231,-2374.06137671,0.000118,2]
[324918470,1714416641241,-168.26224938,0.000118,2]
[324918471,1714416641250,-253.87179882,0.000118,2]
[324918472,1714416641260,-885.78005624,0.000118,2]
[324918473,1714416641270,-190.66798988,0.000118,2]
[324918474,1714416641280,-163.0574458,0.000118,2]
[324918475,1714416641290,-150.0,0.00011802,2]
[324918476,1714416641299,-250.36,0.00011804,2]
[324918477,1714416641309,-150.0,0.00011807,2]
[324918478,1714416641319,-131.63661229,0.00011814,2]
[324918479,1714416641331,-63.25458909,0.00011814,2]
[324918480,1714416641340,-405.42534043,0.00011816,2]
[324918481,1714416641469,-94.57465957,0.00011816,2]
[324918482,1714416641478,-500.0,0.00011816,2]
[324918483,1714416641488,-463.94590484,0.00011816,2]
[324918484,1714416641501,-36.05409516,0.00011816,2]
[324918485,1714416641510,-500.0,0.00011816,2]
[324918486,1714416641520,-582.67823077,0.00011816,2]
[324918487,1714416641531,-690.11,0.00011816,2]
[324918488,1714416641541,-500.0,0.00011816,2]
[324918489,1714416641550,-500.0,0.00011816,2]
[324918490,1714416641560,-500.0,0.00011816,2]
[324918491,1714416641570,-150.0,0.00011816,2]
[324918492,1714416641580,-500.0,0.00011816,2]
[324918493,1714416641590,-1516.16,0.00011816,2]
[324918494,1714416641600,-500.0,0.00011816,2]
[324918495,1714416641610,-500.0,0.00011816,2]
[324918496,1714416641619,-500.0,0.00011816,2]
[324918497,1714416641629,-500.0,0.00011816,2]
[324918498,1714416641639,-500.0,0.00011816,2]
[324918499,1714416641649,-771.01,0.00011816,2]
[324918500,1714416641659,-500.0,0.00011816,2]
[324918501,1714416641669,-500.0,0.00011816,2]
[324918502,1714416641680,-4680.56,0.00011816,2]
[324918503,1714416641698,-500.0,0.00011816,2]
[324918504,1714416641707,-500.0,0.00011816,2]
[324918505,1714416641718,-500.0,0.00011816,2]
[324918506,1714416641728,-500.0,0.00011816,2]
[324918507,1714416641738,-500.0,0.00011816,2]
[324918508,1714416641748,-1874.57,0.00011816,2]
[324918509,1714416641758,-500.0,0.00011816,2]
[324918510,1714416641768,-4442.55,0.00011816,2]
[324918511,1714416641778,-500.0,0.00011816,2]
[324918512,1714416641788,-802.88,0.00011816,2]
[324918513,1714416641798,-983.45,0.00011816,2]
[324918514,1714416641808,-1017.64,0.00011816,2]
[324918515,1714416641818,-500.0,0.00011816,2]
[324918516,1714416641827,-4081.92,0.00011816,2]
[324918517,1714416641837,-991.4,0.00011816,2]
[324918518,1714416641846,-982.59,0.00011816,2]
[324918519,1714416641855,-500.0,0.00011816,2]
[324918520,1714416641865,-500.0,0.00011816,2]
[324918521,1714416641875,-1232.02,0.00011816,2]
[324918522,1714416641886,-1433.17,0.00011816,2]
[324918523,1714416641896,-500.0,0.00011816,2]
[324918524,1714416641906,-500.0,0.00011816,2]
[324918525,1714416641915,-887.68,0.00011816,2]
[324918526,1714416641925,-886.54,0.00011816,2]
[324918527,1714416641935,-1014.36,0.00011816,2]
[324918528,1714416641946,-1587.04,0.00011816,2]
[324918529,1714416641956,-999.32,0.00011816,2]
[324918530,1714416641966,-500.0,0.00011816,2]
[324918531,1714416641976,-1137.7,0.00011816,2]
[324918532,1714416641985,-1109.42,0.00011816,2]
[324918533,1714416641997,-500.0,0.00011816,2]
[324918534,1714416642009,-1667.09,0.00011816,2]
[324918535,1714416642019,-666.49,0.00011816,2]
[324918536,1714416642029,-2763.26,0.00011816,2]
[324918537,1714416642041,-1835.58,0.00011816,2]
[324918538,1714416642052,-2732.06,0.00011816,2]
[324918539,1714416642062,-500.0,0.00011816,2]
[324918540,1714416642072,-1413.71,0.00011816,2]
[324918541,1714416642084,-2497.22,0.00011816,2]
[324918542,1714416642094,-2373.97,0.00011816,2]